{"text_format":"1","workbook":"xlsx","n_sheets":14,"sheets":["1. Forside","2. Samlet prisloft","3. Driftsomkostninger","4. Historiske investeringer","5. Gennemførte investeringer","6. Korrektion investeringer","7. Planlagte investeringer","8. 1-1 omkostninger","9. Miljø- og servicemål","10. Klimatilpasning","11. Nettofinansielle poster","12. Over- eller underdækning","13. Kontrol med indtægtsrammen","Ark1"],"not_rendered":{"charts":0,"images":0,"macros":1,"external_links":0,"defined_names":0,"comments":0,"pivot_tables":0},"unopened":[],"bounds":{"document_bytes":16777216,"sheet_cells":100000,"rows_first":2000,"rows_last":500,"rows_between":2000,"halvings":0,"cell_chars":16384,"cell_head_chars":4096},"cells_cut":0,"cells_raw":0,"read":"whole","date_system":"1900"}

{"sheet":"1. Forside","index":0,"n_rows":27,"n_cols":4,"rows_kept":27,"cut":false,"hidden":false,"merged":[[26,3,26,5],[25,3,25,5],[24,3,24,5],[23,3,23,5],[22,3,22,5],[21,3,21,5],[20,3,20,5],[19,3,19,5],[18,3,18,5],[7,3,7,5],[12,3,12,5],[15,3,15,5],[16,3,16,5],[17,3,17,5]]}
["Hjørring Vandselskab A/S (spildevand)"]
[]
[]
[]
[]
[]
[]
[null,null,null,"Bilag A"]
[]
[]
[]
[]
[null,null,null,"Indholdsfortegnelse"]
[]
[]
[null,null,"Fane nr. 2","Samlet prisloft "]
[null,null,"Fane nr. 3","Driftsomkostninger"]
[null,null,"Fane nr. 4","Historiske investeringer "]
[null,null,"Fane nr. 5","Gennemførte investeringer"]
[null,null,"Fane nr. 6","Korrektion investeringer"]
[null,null,"Fane nr. 7","Planlagte investeringer"]
[null,null,"Fane nr. 8","1:1 omkostninger"]
[null,null,"Fane nr. 9","Miljø- og servicemål"]
[null,null,"Fane nr. 10","Klimatilpasning"]
[null,null,"Fane nr. 11","Nettofinansielle poster"]
[null,null,"Fane nr. 12","Over- eller underdækning"]
[null,null,"Fane nr. 13","Kontrol med indtægtsrammen og oversigt over ekstraordinære effektiviseringsgevinster"]

{"sheet":"2. Samlet prisloft","index":1,"n_rows":38,"n_cols":6,"rows_kept":38,"cut":false,"hidden":false,"merged":[[3,1,3,5]]}
[{"$f":"'1. Forside'!A1","v":"Hjørring Vandselskab A/S (spildevand)"}]
[]
[]
[null,"Fane 2. Samlet prisloft for 2015"]
[]
[null,"Driftsomkostninger"]
[null,"Driftsomkostninger i prisloftet for 2014",{"$f":"'3. Driftsomkostninger'!C20","v":46071954.609020293},"kr."]
[null,"Bortfald af væsentlige omkostninger",{"$f":"-'3. Driftsomkostninger'!C16","v":0},"kr."]
[null,"Korrektion for prisudviklingen 2014-2015",{"$f":"'3. Driftsomkostninger'!C22","v":36857.563687216236},"kr."]
[null,"Forhøjelse til effektivt niveau iht. benchmarkingen",{"$f":"'3. Driftsomkostninger'!C28","v":0},"kr."]
[null,"Korrektion for generelt effektiviseringskrav",{"$f":"-'3. Driftsomkostninger'!C34","v":-202716.6002796893},"kr."]
[null,"Korrektion for individuelt effektiviseringskrav",{"$f":"-'3. Driftsomkostninger'!C43","v":-1323416.8961441079},"kr."]
[null,"Driftsomkostninger i alt",{"$f":"SUM(C7:C12)","v":44582678.67628371},"kr.",{"$f":"C13","v":44582678.67628371}," kr."]
[null,"Investeringer"]
[null,"Tillæg for historiske investeringer",{"$f":"'4. Historiske investeringer'!C9","v":78402543.830376819},"kr."]
[null,"Tillæg for gennemførte investeringer i 2011-2013",{"$f":"'5. Gennemførte investeringer'!F57","v":8894011.796666665},"kr."]
[null,"Korrektion af tillæg for planlagte investeringer vedrørende 2013  ",{"$f":"'6. Korrektion investeringer'!C10","v":1924521.6066666655},"kr."]
[null,"Tillæg for planlagte investeringer i 2014 og 2015",{"$f":"'7. Planlagte investeringer'!F18","v":3153026.666666667},"kr."]
[null,"Investeringstillæg i alt",{"$f":"SUM(C15:C18)","v":92374103.900376827},"kr.",{"$f":"C19","v":92374103.900376827}," kr."]
[null,"Øvrige omkostninger mv."]
[null,"Tillæg for 1:1 omkostninger i 2015",{"$f":"'8. 1-1 omkostninger'!C11","v":9576388},"kr."]
[null,"Tillæg vedr. revisorerklæringer og DANVA/FVD-kontingent",{"$f":"'8. 1-1 omkostninger'!C19","v":179000},"kr."]
[null,"Korrektion ift. faktiske 1:1 omkostninger i 2013",{"$f":"'8. 1-1 omkostninger'!C25","v":7352},"kr."]
[null,"Tillæg for driftsomkostninger til miljø- og servicemål i 2015",{"$f":"'9. Miljø- og servicemål'!C8","v":0},"kr."]
[null,"Korrektion ift. faktiske driftsomkostninger til miljø- og servicemål i 2013",{"$f":"'9. Miljø- og servicemål'!C15","v":0},"kr."]
[null,"Tillæg for driftsomkostninger til medfinansiering af klimatilpasningsprojekter i 2015",{"$f":"'10. Klimatilpasning'!C9","v":935611},"kr."]
[null,"Korrektion ift. faktiske omkostninger til medfinansiering af klimatilpasningsprojekter i 2013",{"$f":"'10. Klimatilpasning'!C16","v":0},"kr."]
[null,"Tillæg/fradrag for nettofinansielle poster i 2015",{"$f":"'11. Nettofinansielle poster'!C9","v":5624571},"kr."]
[null,"Korrektion ift. faktiske nettofinansielle poster i 2013",{"$f":"'11. Nettofinansielle poster'!C16","v":1530257},"kr."]
[null,"Øvrige omkostninger mv. i alt",{"$f":"SUM(C21:C29)","v":17853179},"kr.",{"$f":"C30","v":17853179}," kr."]
[null,"Historisk over- eller underdækning"]
[null,"Tillæg/fradrag for over- eller underdækning til og med 2010",{"$f":"'12. Over- eller underdækning'!C11","v":0},"kr.",{"$f":"C32","v":0}," kr."]
[null,"Korrektion i forhold til tidligere indtægtsramme "]
[null,"Korrektion for overholdelse af indtægtsramme i prisloft 2013",{"$f":"'13. Kontrol med indtægtsrammen'!E27","v":-2072973.7862951308},"kr.",{"$f":"C34","v":-2072973.7862951308}," kr."]
[null,"Samlet prisloft"]
[null,"Indtægtsramme i 2015 ",null,null,{"$f":"SUM(E13:E34)","v":152736987.7903654}," kr."]
[null,"Debiteret vandmængde i 2013",null,null,3221113," m3"]
[null,"Prisloft 2015",null,null,{"$f":"E36/E37","v":47.417457192704944}," kr./m3"]

{"sheet":"3. Driftsomkostninger","index":2,"n_rows":43,"n_cols":4,"rows_kept":43,"cut":false,"hidden":false,"merged":[[3,1,3,3]]}
[{"$f":"'1. Forside'!A1","v":"Hjørring Vandselskab A/S (spildevand)"}]
[]
[]
[null,"Fane 3. Driftsomkostninger "]
[]
[null,"Driftsomkostningerne i prisloftet for 2014"]
[null,"Korrigerede driftsomkostninger i prisloftet for 2013 (DOiPL 2013)",46895798.213704504,"kr."]
[null,"Prisfremskrivning 1,5 pct.",{"$f":"0.015*SUM(C7:C7)","v":703436.97320556757},"kr."]
[null,"Generelt effektiviseringskrav (0 pct.)",0,"kr."]
[null,"Individuelt effektiviseringskrav ",-1527280.57788978,"kr."]
[null,"Driftsomkostningerne i prisloftet for 2014 (DOiPL 2014)",{"$f":"SUM(C7:C10)","v":46071954.609020293},"kr."]
[]
[]
[null,"Korrektion for forventet bortfald af væsentlige omkostninger"]
[null,"Selskabets indberettede bortfald af væsentlige omkostninger inden 2015",0,"kr."]
[null,"Korrektion for forventet bortfald ",{"$f":"SUM(C15:C15)","v":0},"kr."]
[]
[]
[null,"Korrektion for prisudviklingen fra 2014-2015"]
[null,"Driftsomkostningerne i prisloftet for 2014",{"$f":"C11-C16","v":46071954.609020293},"kr."]
[null,"Prisudvikling 2014 - 2015 ",0.08,"pct."]
[null,"Korrektion for prisudvikling",{"$f":"C20*(C21/100)","v":36857.563687216236},"kr."]
[]
[]
[null,"Eventuel forhøjelse til effektivt niveau iht. benchmarkingen"]
[null,"Selskabets effektive driftsomkostninger iht. benchmarkingen",34586216.324991532,"kr."]
[null,"Selskabets pristalskorrigerede driftsomkostninger i 2015-niveau",{"$f":"C20+C22","v":46108812.172707506},"kr."]
[null,"Eventuel forhøjelse til effektivt niveau",{"$f":"IF(C27>C26,0,C26-C27)","v":0},"kr."]
[]
[]
[null,"Korrektion for generelt effektiviseringskrav"]
[null,"Driftsomkostningerne i prisloftet for 2014",{"$f":"C20","v":46071954.609020293},"kr. "]
[null,"Generelt effektiviseringskrav ",0.44,"pct."]
[null,"Endeligt generelt effektiviseringskrav",{"$f":"C32*(C33/100)","v":202716.6002796893},"kr. "]
[]
[]
[null,"Korrektion for individuelt effektiviseringskrav"]
[null,"Rå effektiviseringspotentiale",11485738.284028759,"kr."]
[null,"Effektiviseringspotentiale efter eventuel korrektion for særlige forhold",11485738.284028759,"kr."]
[null,"Effektiviseringspotentiale efter forsigtighedshensyn",5293667.5845764317,"kr."]
[null,"Effektiviseringspotentiale efter eventuel korrektion for sammensætning af signifikante costdrivere",5293667.5845764317,"kr. "]
[null,"Umiddelbart effektiviseringskrav",{"$f":"C41/4","v":1323416.8961441079},"kr."]
[null,"Endeligt individuelt effektiviseringskrav",{"$f":"IF(C42>0.05*C20,0.05*C20,IF(C42<0.01*C20,0,C42))","v":1323416.8961441079},"kr. "]

{"sheet":"4. Historiske investeringer","index":3,"n_rows":9,"n_cols":4,"rows_kept":9,"cut":false,"hidden":false,"merged":[[3,1,3,2]]}
[{"$f":"'3. Driftsomkostninger'!A1","v":"Hjørring Vandselskab A/S (spildevand)"}]
[]
[]
[null,"Fane 4. Historiske investeringer "]
[]
[null,"Tillæg for historiske investeringer "]
[null,"Værdi af selskabets materielle anlægsaktiver pr. 1. januar 2010",3171565526.3682475,"kr."]
[null,"Den årlige standardafskrivning på de materielle anlægsaktiver iht. POLKA",78402543.830376819,"kr."]
[null,"Tillæg i alt i 2015",{"$f":"C8","v":78402543.830376819},"kr."]

{"sheet":"5. Gennemførte investeringer","index":4,"n_rows":57,"n_cols":7,"rows_kept":57,"cut":false,"hidden":false,"merged":[[3,1,3,5],[6,5,6,6]]}
[{"$f":"'4. Historiske investeringer'!A1","v":"Hjørring Vandselskab A/S (spildevand)"}]
[]
[]
[null,"Fane 5. Gennemførte investeringer i 2010 - 2013 "]
[]
[null,"Tillæg for gennemførte investeringer i 2013"]
[null," Beskrivelse af investeringen   ","Årstal ","Std. levetid (år)   "," Anskaffelses-pris (kr.)","Afskrivning "]
[null,"Administrationbygninger",2013,75,6370812,{"$f":"E8/D8","v":84944.16},"kr."]
[null,"Arbejdsplads",2013,5,2731783,{"$f":"E9/D9","v":546356.6},"kr."]
[null,"Beluftningstanke, Mek/EL",2013,20,217593,10879.65,"kr."]
[null,"Beluftningstanke, SRO",2013,10,26974,2697.4,"kr."]
[null,"Brønde",2013,75,33808320,450777.59999999998,"kr."]
[null,"Efterklaringstanke, Konstruktioner",2013,60,246312,4105.2,"kr."]
[null,"Efterklaringstanke, Mek/El",2013,20,631829,31591.45,"kr."]
[null,"Forafvanding, slam, Mek/EL",2013,20,174102,8705.1,"kr."]
[null,"Forafvanding, slam, SRO",2013,10,8695,869.5,"kr."]
[null,"Forklaring, Konstruktioner",2013,60,105992,1766.5333333333333,"kr."]
[null,"Forsinkelsesbassiner, lukkede med automatisk rensning og SRO Miljøklasse A (500-1.000 m3) - Mek/EL",2013,20,126103,6305.15,"kr."]
[null,"Forsinkelsesbassiner, lukkede med automatisk rensning og SRO Miljøklasse A (500-1.000 m3) - SRO",2013,10,1677,167.7,"kr."]
[null,"Forsinkelsesbassiner, lukkede med automatisk rensning og SRO Miljøklasse A (større end 10.000 m3) - Konstruktioner",2013,75,117439,1565.8533333333332,"kr."]
[null,"Forsinkelsesbassiner, lukkede med automatisk rensning og SRO Miljøklasse A (større end 10.000 m3) - SRO",2013,10,2650,265,"kr."]
[null,"Gasdisponering - elproduktionsanlæg, Mek/EL",2013,20,409436,20471.8,"kr."]
[null,"Gasdisponering, Konstruktioner",2013,60,174416,2906.9333333333334,"kr."]
[null,"Gasdisponering, SRO",2013,10,1060,106,"kr."]
[null,"Indløb med riste, Konstruktioner",2013,60,542324,9038.7333333333336,"kr."]
[null,"Indløb med riste, Mek/EL",2013,20,2021341,101067.05,"kr."]
[null,"Indløb med riste, SRO",2013,10,1663378,166337.79999999999,"kr."]
[null,"Installationer \"mekaniske riste og SRO\" Miljøklasse A. (7-20 m2) - Mek/EL",2013,20,3625122,181256.1,"kr."]
[null,"Jordbassin Klasse A",2013,50,551723,11034.46,"kr."]
[null,"Køretøjer, store lastvogne (> 3.500 kg.)",2013,5,668704,133740.79999999999,"kr."]
[null,"Ledningsnet > Ø 1600 mm (rørbassiner og transportledninger)",2013,75,89666,1195.5466666666666,"kr."]
[null,"Ledningsnet = Ø 200 mm",2013,75,21274900,283665.33333333331,"kr."]
[null,"Overbygning",2013,75,31574,420.98666666666668,"kr."]
[null,"Overbygning",2013,75,29004,386.72,"kr."]
[null,"Pumpeinstallation Miljøklasse A (100-300 l/s) - Mek/EL",2013,20,466027,23301.35,"kr."]
[null,"Pumpeinstallation Miljøklasse A (300-600 l/s) - Mek/EL",2013,20,28370,1418.5,"kr."]
[null,"Pumpeinstallation Miljøklasse B (100-300 l/s) - Mek/EL",2013,20,26880,1344,"kr."]
[null,"Pumpeinstallation Miljøklasse B (300-600 l/s) - Mek/EL",2013,20,23571,1178.55,"kr."]
[null,"Pumpestationer i brønde (< 6,25 m2), Konstruktioner",2013,50,1300408,26008.16,"kr."]
[null,"Pumpestationer i brønde (< 6,25 m2), Mek/EL",2013,20,2564437,128221.85,"kr."]
[null,"Pumpestationer i brønde (< 6,25 m2), SRO",2013,10,648529,64852.9,"kr."]
[null,"Pumpestationer i underjordiske bygværker (",2013,20,59997,2999.85,"kr."]
[null,"Pumpestationer m. overbygning (< 20 m2), Konstruktioner",2013,50,1846724,36934.480000000003,"kr."]
[null,"Pumpestationer m. overbygning (< 20 m2), Mek/EL",2013,20,2845076,142253.79999999999,"kr."]
[null,"Pumpestationer m. overbygning (< 20 m2), SRO",2013,10,583263,58326.3,"kr."]
[null,"Sand- og fedtfang, Mek/EL",2013,20,82835,4141.75,"kr."]
[null,"Slutafvanding, slam - lavteknologisk (slambede), Mek/EL",2013,20,27546,1377.3,"kr."]
[null,"Strømpeforing = Ø 200 mm",2013,50,211719,4234.38,"kr."]
[null,"Strømpeforing Ø 200 mm < Ledningsnet = Ø 500 mm",2013,50,311322,6226.44,"kr."]
[null,"Ø 1000 mm < Ledningsnet = Ø 1200 mm",2013,75,1041261,13883.48,"kr."]
[null,"Ø 1200 mm < Ledningsnet = Ø 1600 mm",2013,75,1283095,17107.933333333334,"kr."]
[null,"Ø 200 mm < Ledningsnet = Ø 500 mm",2013,75,10717019,142893.58666666667,"kr."]
[null,"Ø 500 mm < Ledningsnet = Ø 800 mm",2013,75,9229249,123056.65333333334,"kr."]
[null,"Ø 800 mm < Ledningsnet = Ø 1000 mm",2013,75,1687191,22495.88,"kr."]
[null,"Tillæg for 2013 ",null,null,null,{"$f":"SUM(F8:F54)","v":2884882.3033333328},"kr."]
[null,"Tillæg for 2010 - 2012",null,null,null,6009129.4933333322,"kr."]
[null,"Samlet tillæg for gennemførte investeringer",null,null,null,{"$f":"F55+F56","v":8894011.796666665},"kr."]

{"sheet":"6. Korrektion investeringer","index":5,"n_rows":10,"n_cols":4,"rows_kept":10,"cut":false,"hidden":false,"merged":[[3,1,3,3]]}
[{"$f":"'5. Gennemførte investeringer'!A1","v":"Hjørring Vandselskab A/S (spildevand)"}]
[]
[]
[null,"Fane 6. Korrektion af tillæg for planlagte investeringer"]
[]
[null,"Korrektion af tillæg for planlagte investeringer vedr. 2013"]
[null,"Tillæg for planlagte investeringer i 2013 i prisloft 2013",1964400,"kr."]
[null,"Tillæg for planlagte investeringer i 2013 i prisloft 2014",1880843,"kr."]
[null,"Selskabets faktiske afskrivninger på gennemførte investeringer i 2013",{"$f":"'5. Gennemførte investeringer'!F55","v":2884882.3033333328},"kr."]
[null,"Korrektion af tillæg for planlagte investeringer vedr. 2013",{"$f":"C9-C7+C9-C8","v":1924521.6066666655},"kr."]

{"sheet":"7. Planlagte investeringer","index":6,"n_rows":18,"n_cols":7,"rows_kept":18,"cut":false,"hidden":false,"merged":[[6,5,6,6],[3,1,3,6]]}
[{"$f":"'6. Korrektion investeringer'!A1","v":"Hjørring Vandselskab A/S (spildevand)"}]
[]
[]
[null,"Fane 7. Planlagte investeringer "]
[]
[null,"Tillæg for planlagte investeringer i 2014 og 2015"]
[null,"Beskrivelse af investeringen   ","Årstal ","Std. levetid (år)   ","Anskaffelses-pris (kr.)   ","Afskrivning"]
[null,"Beluftningstanke, Mek/EL",2014,20,6000000,{"$f":"E8/D8","v":300000},"kr."]
[null,"Ledningsnet = Ø 200 mm",2014,75,67945000,{"$f":"E9/D9","v":905933.33333333337},"kr."]
[null,"Køretøjer, små lastvogne (< 3.500 kg.)",2014,5,600000,120000,"kr."]
[null,"Arbejdsplads",2014,5,1252900,250580,"kr."]
[null,"Køretøjer, små lastvogne (< 3.500 kg.)",2015,5,600000,120000,"kr."]
[null,"Beluftningstanke, Mek/EL",2015,20,6000000,300000,"kr."]
[null,"Ledningsnet = Ø 200 mm",2015,75,67945000,905933.33333333337,"kr."]
[null,"Arbejdsplads",2015,5,1252900,250580,"kr."]
[null,"Tillæg for 2014",null,null,null,{"$f":"SUMIF(C8:C15,\"2014\",F8:F15)","v":1576513.3333333335},"kr."]
[null,"Tillæg for 2015",null,null,null,{"$f":"SUMIF(C8:C15,\"2015\",F8:F15)","v":1576513.3333333335},"kr."]
[null,"Tillæg i alt",null,null,null,{"$f":"F16+F17","v":3153026.666666667},"kr."]

{"sheet":"8. 1-1 omkostninger","index":7,"n_rows":25,"n_cols":4,"rows_kept":25,"cut":false,"hidden":false,"merged":[[3,1,3,3],[15,1,15,3],[21,1,21,3]]}
[{"$f":"'7. Planlagte investeringer'!A1","v":"Hjørring Vandselskab A/S (spildevand)"}]
[]
[]
[null,"Fane 8. 1:1 omkostninger"]
[]
[null,"Tillæg for budgetterede 1:1 omkostninger i 2015"]
[null,"Betaling til Forsyningssekretariatet",16500,"kr."]
[null,"Spildevandsafgift",1101046,"kr."]
[null,"Selskabsskatter ",8020000,"kr."]
[null,"Ejendomsskatter",438842,"kr."]
[null,"Tillæg i alt ",{"$f":"SUM(C7:C10)","v":9576388},"kr."]
[]
[]
[]
[]
[null,"Tillæg for budgetterede nødvendige udgifter til revisorerklæringer samt ordinært medlemskab af DANVA og FVD i 2015"]
[null,"Betaling for ordinært medlemskab af DANVA/FVD",150400,"kr."]
[null,"Betaling for revisorerklæringer",28600,"kr."]
[null,"Tillæg i alt ",{"$f":"SUM(C17:C18)","v":179000},"kr."]
[]
[]
[null,"Korrektion af tillæg for faktiske 1:1 omkostninger (inkl. revisorerklæringer og ordinært medlemskab af DANVA/FVD) i 2013"]
[null,"Selskabets faktiske 1:1 omkostninger mv. i 2013, jf. reguleringsregnskabet",{"$f":"1733852+360000","v":2093852},"kr."]
[null,"Tillæg for budgetterede 1:1 omkostninger mv. i prisloft 2013",2086500,"kr."]
[null,"Korrektion af tillæg for budgetterede 1:1 omkostninger mv. i 2013",{"$f":"C23-C24","v":7352},"kr."]

{"sheet":"9. Miljø- og servicemål","index":8,"n_rows":15,"n_cols":4,"rows_kept":15,"cut":false,"hidden":false,"merged":[[3,1,3,3]]}
[{"$f":"'8. 1-1 omkostninger'!A1","v":"Hjørring Vandselskab A/S (spildevand)"}]
[]
[]
[null,"Fane 9. Driftsomkostninger til miljø- og servicemål "]
[]
[null,"Tillæg for budgetterede driftsomkostninger til miljø- og servicemål i 2015"]
[null,null,0,"kr."]
[null,"Tillæg i alt",{"$f":"SUM(C7:C7)","v":0},"kr."]
[]
[]
[]
[null,"Korrektion af tillæg for faktiske driftsomkostninger til miljø- og servicemål i 2013"]
[null,"Selskabets faktiske driftsomkostninger til miljø- og servicemål i 2013, jf. reguleringsregnskabet",0,"kr."]
[null,"Tillæg for budgetterede driftsomkostninger til miljø- og servicemål i prisloft 2013",0,"kr."]
[null,"Korrektion af tillæg for budgetterede driftsomkostninger til miljø- og servicemål i 2013",{"$f":"C13-C14","v":0},"kr."]

{"sheet":"10. Klimatilpasning","index":9,"n_rows":16,"n_cols":4,"rows_kept":16,"cut":false,"hidden":false,"merged":[[3,1,3,3],[12,1,12,3],[6,1,6,3]]}
[{"$f":"'9. Miljø- og servicemål'!A1","v":"Hjørring Vandselskab A/S (spildevand)"}]
[]
[]
[null,"Fane 10. Medfinansiering af klimatilpasningsprojekter"]
[]
[]
[null,"Tillæg for budgetterede omkostninger til medfinansiering af klimatilpasningsprojekter i 2015"]
[null,"Hjørring Midtby (godkendt i PL2014)",935611,"kr."]
[null,"Tillæg i alt",{"$f":" SUM(C8:C8)","v":935611},"kr."]
[]
[]
[]
[null,"Korrektion af tillæg for faktiske omkostninger til medfinansiering af klimatilpasningsprojekter i 2013"]
[null,"Selskabets faktiske driftsomkostninger til klimatilpasningsprojekter i 2013, jf. reguleringsregnskabet",0,"kr."]
[null,"Tillæg for budgetterede driftsomkostninger til klimatilpasningsprojekter i prisloft 2013",0,"kr."]
[null,"Korrektion af tillæg for budgetterede omkostninger til klimatilpasningsprojekter i 2013",{"$f":"C14-C15","v":0},"kr."]

{"sheet":"11. Nettofinansielle poster","index":10,"n_rows":16,"n_cols":4,"rows_kept":16,"cut":false,"hidden":false,"merged":[[3,1,3,3]]}
[{"$f":"'10. Klimatilpasning'!A1","v":"Hjørring Vandselskab A/S (spildevand)"}]
[]
[]
[null,"Fane 11. Nettofinansielle poster"]
[]
[null,"Tillæg for budgetterede nettofinansielle poster i 2015"]
[null,"Budgetterede renteudgifter og gebyrer i 2015",5783571,"kr."]
[null,"Budgetterede renteindtægter i 2015",159000,"kr."]
[null,"Tillæg/fradrag i alt",{"$f":"C7-C8","v":5624571},"kr."]
[]
[]
[]
[null,"Korrektion af tillæg for faktiske nettofinansielle poster i 2013"]
[null,"Selskabets faktiske nettofinansielle poster i 2013, jf. reguleringsregnskabet",6153257,"kr."]
[null,"Tillæg for budgetterede nettofinansielle poster i prisloft 2013",4623000,"kr."]
[null,"Korrektion af tillæg for budgetterede nettofinansielle poster i 2013",{"$f":"C14-C15","v":1530257},"kr."]

{"sheet":"12. Over- eller underdækning","index":11,"n_rows":11,"n_cols":4,"rows_kept":11,"cut":false,"hidden":true,"merged":[[3,1,3,3]]}
[{"$f":"'11. Nettofinansielle poster'!A1","v":"Hjørring Vandselskab A/S (spildevand)"}]
[]
[]
[null,"Fane 12. Over- eller underdækning til og med 2010"]
[]
[null,"Tillæg/fradrag for over- eller underdækning til og med 2010"]
[null,"Opgjort over- eller underdækning per 31. december 2010",0,"kr."]
[null,"Heraf beløb indregnet i prislofterne for 2012 - 2014",0,"kr."]
[null,"Endnu ikke indregnet over- eller underdækning",{"$f":"C7-C8","v":0},"kr."]
[null,"Resterende indregningsperiode (fastsat i prisloftet for 2012)",0,"år"]
[null,"Tillæg/fradrag i alt",{"$f":"IF(C7=0,0,C9/C10)","v":0},"kr."]

{"sheet":"13. Kontrol med indtægtsrammen","index":12,"n_rows":38,"n_cols":12,"rows_kept":38,"cut":false,"hidden":false,"merged":[[3,1,3,5],[30,1,30,4],[5,1,5,5]]}
[{"$f":"'12. Over- eller underdækning'!A1","v":"Hjørring Vandselskab A/S (spildevand)"}]
[]
[]
[null,"Fane 13. Korrektion for overholdelse af indtægtsrammen i prisloftet for 2013"]
[]
[null,"Samlet opgørelse vedrørende overholdelse af indtægtsrammen i prisloftet for 2013"]
[null,"Indtægtsramme i prisloftet for 2013",null,null,134303064.68071899,"kr."]
[null,"Ikke anvendt likviditet vedrørende investeringer i 2013"]
[null,"Tillæg for historiske investeringer ",79136999.467014119,"kr."]
[null,"Tillæg for gennemførte investeringer i 2011",4591165,"kr."]
[null,"Korrektion af tillæg for planlagte investeringer i 2011",1869426,"kr."]
[null,"Tillæg for planlagte investeringer i 2012 og 2013",3475700,"kr."]
[null,"Indtægter fra tilslutningsbidrag",4242153,"kr."]
[null,"Indtægter fra salg af anlægsaktiver",0,"kr."]
[null,"Erstatninger vedr. anlægsaktiver mv.",0,"kr."]
[null,"Ekstraordinær effektiviseringsgevinst anvendt til investeringer",0,"kr."]
[null,"Udgifter til investeringer",-75746021,"kr."]
[null,"Ikke anvendt likviditet vedr. investeringer i alt",{"$f":"SUM(C9:C17)","v":17569422.467014119},"kr.",{"$f":"IF(C18<0,0,-C18)","v":-17569422.467014119},"kr."]
[null,"Ekstraordinære effektiviseringsgevinster anvendt til takstnedsættelse"]
[null,"Ekstraordinær effektiviseringsgevinst anvendt til takstnedsættelse",0,"kr.",{"$f":"-C20","v":0},"kr."]
[null,"Korrektion af ikke opkrævet tillæg fra 2011 i prisloft 2013"]
[null,"Korrektion af ikke opkrævet tillæg fra 2011 i prisloft 2013",0,"kr.",{"$f":"-C22","v":0},"kr."]
[null,"Indtægter fra primære aktiviteter mv."]
[null,"Indtægter fra kubikmetertakster, faste takster, særbidrag, målergebyrer samt andre takster og gebyrer",118806616,"kr."]
[null,"Andre indtægter i prisloftåret, som selskabet har opnået i forbindelse med eller som følge af selskabets primære aktiviteter",0,"kr."]
[null,"Indtægter fra primære aktiviteter mv. i alt",{"$f":"SUM(C24:C25)","v":118806616},"kr.",{"$f":"-C26","v":-118806616},"kr."]
[null,"Tillæg/fradrag i prisloftet for 2015 i alt",null,null,{"$f":"E7+E18+E20+E22+E26","v":-2072973.7862951308},"kr."]
[]
[]
[]
[null,"Oversigt over ekstraordinære effektiviseringsgevinster"]
[]
[null,null,2012,null,2013,null,2014,null,2015,null,2016]
[null,"Indhentet ekstraordinær effektiviseringsgevinst",1667184,"kr.",5307892,"kr.",null,"kr.",null,"kr.",null,"kr."]
[null,"Gevinst anvendt til investeringer",0,"kr.",0,"kr.",null,"kr.",null,"kr.",null,"kr."]
[null,"Gevinst anvendt til takstnedsættelse",724006,"kr.",0,"kr.",null,"kr.",null,"kr.",null,"kr."]
[null,"Korrektion for  effektiviseringsgevinst der ikke er anvendt inden 4 år",0,"kr.",0,"kr.",null,"kr.",null,"kr.",{"$f":"IF(C38>SUM(E35:I36),C38-SUM(E35:I36),0)*-1","v":-943178},"kr."]
[null,"Resterende gevinst",{"$f":"C34-C35-C36","v":943178},"kr.",{"$f":"C38+E34-E35-E36","v":6251070},"kr.",{"$f":"E38+G34-G35-G36","v":6251070},"kr.",{"$f":"G38+I34-I35-I36","v":6251070},"kr.",{"$f":"K34-K35-K36+K37+I38","v":5307892},"kr."]

{"sheet":"Ark1","index":13,"n_rows":0,"n_cols":0,"rows_kept":0,"cut":false,"hidden":false,"merged":[]}